bitfinex-derivatives/quotes_ETHF0:USTF0_20251126
["timestamp","ask_amount","ask_price","bid_price","bid_amount"]
[1764199026790,4.46439822,3026.6,3026.0,0.27294343]
[1764199026989,0.78139822,3026.5,3026.0,0.27294343]
[1764199027298,0.78139822,3026.5,3026.4,0.4631]
[1764199030292,0.4508,3026.1,3026.0,0.00364343]
[1764199030490,1.23219822,3026.1,3026.0,0.28014343]
[1764199030890,1.23219822,3026.1,3026.0,0.74324343]
[1764199031092,0.78139822,3026.1,3026.0,0.74324343]
[1764199031290,0.4508,3026.4,3026.3,0.4631]
[1764199031783,1.23303465,3026.4,3026.3,0.4631]
[1764199033190,1.23303465,3026.4,3026.0,0.28014343]
[1764199033396,1.23303465,3026.3,3026.2,0.4631]
[1764199034499,0.78223465,3026.3,3026.2,0.4631]
[1764199034808,4.39440109,3026.6,3026.5,0.7396]
[1764199034999,3.99111063,3026.6,3026.5,0.7396]
[1764199036597,4.44191063,3026.6,3026.0,0.28014343]
[1764199036797,0.78331063,3026.5,3026.0,0.28014343]
[1764199039204,1.23411063,3026.5,3026.4,0.4631]
[1764199039401,1.23411063,3026.5,3026.0,0.28014343]
[1764199039600,1.23411063,3026.4,3026.3,0.4631]
[1764199040700,4.44191063,3026.4,3026.3,0.4631]
[1764199041094,1.23411063,3026.4,3026.3,0.4631]
[1764199044399,0.4508,3026.1,3026.0,0.74324343]
[1764199045906,1.23439298,3026.1,3026.0,0.74324343]
[1764199046807,1.23439298,3026.1,3026.0,0.28014343]
[1764199047803,1.23439298,3026.1,3026.0,0.74324343]
[1764199048910,0.78359298,3026.1,3026.0,0.74324343]
[1764199049109,0.4508,3026.3,3026.2,0.4631]
[1764199049315,1.23434311,3026.3,3026.2,0.4631]
[1764199049914,0.4508,3026.1,3026.0,0.74324343]
[1764199050214,1.23434311,3026.1,3026.0,0.74324343]
[1764199051202,2.67526339,3026.1,3026.0,0.00364343]
[1764199051406,0.1375,3025.5,3025.0,0.747]
[1764199051610,1.89172028,3025.1,3025.0,0.747]
[1764199051806,0.4508,3025.3,3025.2,0.4631]
[1764199052018,1.2345578,3025.3,3025.2,0.4631]
[1764199052214,0.4508,3024.8,3024.7,0.4631]
[1764199052515,0.00318478,3024.8,3024.7,0.46609058]
[1764199055107,0.00318478,3024.8,3024.7,1.90701086]
[1764199055308,3.2078,3025.7,3025.6,0.4736]
[1764199056124,3.2078,3025.7,3024.5,0.2746]
[1764199056125,11.4298535,3025.7,3024.5,0.2746]
[1764199056318,1.44092028,3025.1,3025.0,0.2746]
[1764199056512,0.474,3025.3,3025.2,0.4736]
[1764199056815,1.25525983,3025.3,3025.2,0.4736]
[1764199057117,0.474,3025.1,3025.0,0.7482]
[1764199057325,1.44092028,3025.3,3025.0,0.7482]
[1764199057519,0.474,3025.1,3025.0,0.7482]
[1764199058113,0.474,3024.9,3024.8,0.4736]
[1764199058311,0.474,3024.8,3024.7,0.47659058]
[1764199059331,4.64872028,3025.1,3024.7,0.47659058]
[1764199059332,3.2078,3025.1,3025.0,0.7482]
[1764199059822,3.6818,3025.1,3025.0,0.7482]
[1764199060020,0.474,3024.8,3024.7,0.47659058]
[1764199060620,3.6818,3025.1,3025.0,0.7482]
[1764199060818,3.2078,3025.1,3025.0,0.7482]
[1764199061018,3.2078,3025.1,3024.4,0.0049572]
[1764199061019,0.6115,3024.5,3024.4,0.0049572]
[1764199061330,3.8193,3024.5,3024.4,0.0049572]
[1764199061714,4.59920863,3024.5,3024.4,0.0049572]
[1764199062026,4.59920863,3024.5,3024.4,0.00789812]
[1764199062222,3.8193,3024.5,3024.4,0.00789812]
[1764199062614,5.26346008,3024.5,3024.4,0.00789812]
[1764199071228,3.6818,3024.5,3024.4,0.48149812]
[1764199071928,3.6818,3024.5,3024.4,0.00789812]
[1764199077340,4.46410677,3024.5,3024.4,0.00789812]
[1764199078436,0.474,3023.7,3023.2,3.2078]
[1764199078637,0.474,3023.3,3023.2,3.6814]
[1764199078932,1.44416008,3023.6,3023.2,3.6814]
[1764199079136,1.44416008,3023.6,3023.5,0.7482]
[1764199079137,0.474,3023.6,3023.5,0.7482]
[1764199079437,3.6818,3023.7,3023.6,0.4736]
[1764199079630,3.68462036,3023.7,3023.6,0.4736]
[1764199080031,0.474,3023.6,3023.5,0.75063561]
[1764199081934,3.21062036,3023.7,3023.6,0.4736]
[1764199082238,3.68462036,3023.7,3023.6,0.4736]
[1764199082634,0.474,3023.6,3023.5,0.00243561]
[1764199082937,2.70251532,3023.6,3023.5,0.00243561]
[1764199083832,0.00282036,3023.7,3023.6,0.4736]
[1764199084037,0.00282036,3023.7,3023.6,3.6814]
[1764199084231,0.00282036,3023.7,3023.6,0.4736]
[1764199087835,4.39108835,3024.5,3023.5,0.27703561]
[1764199087836,0.4858,3024.5,3023.5,0.27703561]
[1764199088040,0.78507998,3024.4,3024.0,0.7873]
[1764199088239,4.65196008,3024.5,3024.0,0.7873]
[1764199088240,1.44416008,3024.5,3024.3,0.4915]
[1764199088436,1.27135867,3024.4,3024.3,0.4915]
[1764199088841,1.27532906,3024.4,3024.3,0.4915]
[1764199089029,0.78952906,3024.4,3024.3,0.4915]
[1764199090142,0.00397039,3024.4,3024.3,0.4915]
[1764199090836,0.0049572,3024.7,3024.6,0.4828]
[1764199091042,1.2423418,3024.7,3024.6,0.4828]
[1764199091838,1.24657004,3024.7,3024.6,0.4828]
[1764199092942,0.4513,3024.6,3024.0,3.5036]
[1764199093143,0.7860846,3024.5,3024.0,3.5036]
[1764199093339,1.44416008,3024.6,3024.0,3.5036]
[1764199093541,0.78568306,3024.5,3024.0,3.5036]
[1764199093842,4.65196008,3024.6,3024.0,3.5036]
[1764199094044,0.78568297,3024.5,3024.4,0.4828]
[1764199095347,3.2078,3024.6,3024.5,0.7629]
[1764199097040,0.00918544,3024.7,3024.6,0.4828]
[1764199097241,1.24444933,3024.7,3024.6,0.4828]
[1764199098146,0.79314933,3024.7,3024.6,0.4828]
[1764199098346,0.00918544,3024.7,3024.6,0.4828]
[1764199100239,0.4513,3025.7,3025.6,0.4828]
[1764199100439,0.4513,3025.7,3025.2,3.2078]
[1764199100743,1.44416008,3025.8,3025.2,3.6906]
[1764199100744,0.4513,3025.3,3025.2,3.6906]
[1764199101043,0.45541403,3025.3,3025.2,3.6906]
[1764199105543,0.45541403,3025.3,3025.2,3.2078]
[1764199106549,0.45541403,3025.3,3025.2,3.6906]
[1764199106737,0.00411403,3025.3,3025.2,3.6906]
[1764199106943,0.00083636,3025.6,3025.5,0.7574]
[1764199108044,0.00353113,3025.6,3025.5,0.7574]
[1764199111450,0.1922,3026.5,3026.1,0.4828]
[1764199111850,0.4513,3026.2,3026.1,0.4828]
[1764199112350,0.45536014,3026.2,3026.1,0.48541607]
[1764199113950,0.45536014,3026.2,3026.1,0.00261607]
[1764199114745,0.45536014,3026.2,3026.1,0.48541607]
[1764199116555,0.45536014,3026.2,3026.1,0.00261607]
[1764199118055,6.45536014,3026.2,3026.1,0.00261607]
[1764199123263,7.2350487,3026.2,3026.1,0.00261607]
[1764199124566,8.67750352,3026.2,3026.1,0.00261607]
[1764199124874,0.45536014,3026.2,3026.1,0.46341607]
[1764199125057,0.45536014,3026.2,3026.1,0.00261607]
[1764199126160,1.23510281,3026.2,3026.1,0.00261607]
[1764199133169,0.4955,3025.7,3025.6,3.2078]
[1764199133364,1.93795482,3025.7,3025.6,3.2078]
[1764199133565,2.71769749,3025.7,3025.6,3.2078]
[1764199134164,2.71769749,3025.7,3025.6,0.00403825]
[1764199143080,1.27524267,3025.7,3025.6,0.46483825]
[1764199143674,1.27524267,3025.7,3025.6,0.00403825]
[1764199144073,1.18734849,3026.2,3026.1,0.4608]
[1764199144374,1.28135516,3026.2,3026.1,0.4608]
[1764199145783,1.28135516,3026.2,3025.6,4.65429307]
[1764199145982,0.2974,3026.0,3025.6,3.21183825]
[1764199146172,1.44245482,3025.9,3025.6,3.21183825]
[1764199146373,0.472,3025.9,3025.8,0.4503]
[1764199146675,0.472,3025.7,3025.6,0.45433825]
[1764199147681,0.2974,3026.0,3025.6,0.00403825]
[1764199147876,0.47606014,3026.2,3026.1,0.4503]
[1764199148077,1.25868671,3026.2,3026.1,0.4503]
[1764199148382,1.25868671,3026.2,3025.6,3.21183825]
[1764199148679,0.47606014,3026.2,3025.6,3.21183825]
[1764199149575,0.2766,3026.0,3025.6,3.21183825]
[1764199149777,0.469,3025.7,3025.6,3.70493825]
[1764199150890,1.91145482,3025.7,3025.6,0.00403825]
[1764199151480,2.69381949,3025.7,3025.6,0.00403825]
[1764199152484,1.25136467,3025.7,3025.6,0.00403825]
[1764199153182,0.469,3025.3,3025.2,3.2078]
[1764199153390,2.18805482,3025.0,3024.9,0.0049572]
[1764199153586,2.96996468,3025.0,3024.9,0.0049572]
[1764199154180,2.18805482,3025.0,3024.9,0.0049572]
[1764199154492,2.18805482,3025.0,3024.9,0.00753321]
[1764199161090,0.7456,3025.0,3024.9,0.00753321]
[1764199161290,3.4844,3025.5,3024.9,0.50063321]
[1764199161591,0.7456,3025.0,3024.9,0.50063321]
[1764199165411,0.7456,3025.0,3024.9,0.00753321]
[1764199168601,0.7456,3025.0,3024.9,0.50063321]
[1764199170012,0.7456,3025.0,3024.9,0.00753321]
[1764199171298,2.18805482,3025.0,3024.9,0.00753321]
[1764199177420,0.4948,3024.4,3024.3,3.2078]
[1764199177605,1.93725482,3024.4,3024.3,3.2078]
[1764199178116,1.93725482,3024.4,3023.4,2.43234721]
[1764199178117,0.7686,3024.0,3023.9,3.2078]
[1764199178614,0.77190627,3024.0,3023.9,3.6747613]
[1764199180309,0.77190627,3024.0,3023.9,3.2116613]
[1764199181815,0.77190627,3024.0,3023.9,3.6747613]
[1764199182011,0.00330627,3024.0,3023.9,3.6747613]
[1764199184718,0.77190627,3024.0,3023.9,3.6747613]
[1764199186616,0.00330627,3024.0,3023.9,3.6747613]
[1764199194622,0.77190627,3024.0,3023.9,3.6747613]
[1764199195123,0.00330627,3024.0,3023.9,3.6747613]
[1764199196419,0.77190627,3024.0,3023.9,0.0038613]
[1764199196722,0.77190627,3024.0,3023.9,0.4669613]
[1764199197318,0.77190627,3024.0,3023.9,0.0038613]
[1764199197625,0.00330627,3024.0,3023.9,0.4669613]
[1764199197924,0.49810627,3024.0,3023.9,0.4669613]
[1764199198220,0.00330627,3024.0,3023.9,3.6747613]
[1764199202826,1.18328835,3024.9,3024.5,0.4631]
[1764199203025,1.2839967,3024.8,3024.7,0.4631]
[1764199203224,0.7891967,3024.8,3024.7,0.4631]
[1764199203621,1.2839967,3024.8,3024.7,0.4631]
[1764199203922,1.28695718,3024.8,3024.7,0.4631]
[1764199204323,0.00296048,3024.8,3024.7,0.4631]
[1764199204724,0.0049572,3025.1,3025.0,0.55]
[1764199204929,0.0049572,3025.1,3025.0,5.20153529]
[1764199205623,0.00803209,3025.1,3025.0,5.20153529]
[1764199207725,0.50283209,3025.1,3025.0,0.4631]
[1764199214835,0.00803209,3025.1,3025.0,0.5501]
[1764199215438,0.47983209,3025.1,3025.0,0.4631]
[1764199217042,0.7414,3025.0,3024.9,3.2078]
[1764199217736,0.7414,3025.0,3024.4,3.2078]
[1764199219339,0.7414,3025.0,3024.9,0.4782]
[1764199219539,0.7414,3025.0,3024.9,3.686]
[1764199221845,0.7414,3025.0,3024.9,3.2078]
[1764199222237,0.7414,3025.0,3024.9,3.686]
[1764199222744,0.7414,3025.0,3024.9,3.2078]
[1764199224639,0.7414,3025.0,3024.9,3.686]
[1764199225644,0.7414,3025.0,3024.4,3.2078]
[1764199226748,0.4718,3024.5,3024.4,3.686]
[1764199226937,0.2696,3025.0,3024.4,3.686]
[1764199229149,0.79135682,3024.9,3024.4,3.686]
[1764199229445,0.00803209,3025.1,3025.0,0.4782]
[1764199229648,0.79943427,3025.1,3025.0,0.4782]
[1764199229844,1.27123427,3025.1,3025.0,0.4782]
[1764199233442,0.79943427,3025.1,3025.0,0.4782]
[1764199233639,0.79943427,3025.1,3025.0,0.5691]
[1764199233844,0.00803209,3025.1,3025.0,0.5691]
[1764199234346,0.80019983,3025.1,3025.0,0.5691]
[1764199234941,0.00803209,3025.1,3025.0,0.5691]
[1764199238249,0.769,3025.0,3024.5,3.4868]
[1764199238554,0.769,3025.0,3024.5,3.2078]
[1764199238755,0.79389463,3024.9,3024.5,3.2078]
[1764199238942,0.2771,3025.0,3024.5,3.2078]
[1764199239647,1.28584446,3024.9,3024.8,0.4828]
[1764199239855,1.28584446,3024.9,3024.5,3.2078]
[1764199240052,0.4919,3024.9,3024.5,3.2078]
[1764199240950,0.4919,3024.6,3024.5,3.6906]
[1764199248558,1.93534414,3024.9,3024.8,0.4828]
[1764199248857,2.72949743,3024.9,3024.8,0.4828]
[1764199249059,1.28605329,3024.9,3024.8,0.4828]
[1764199249258,0.79415329,3024.9,3024.8,0.4828]
[1764199249760,1.28605329,3024.9,3024.8,0.4828]
[1764199250053,1.28605329,3024.9,3024.5,3.2078]
[1764199250359,0.4919,3024.6,3024.5,3.6906]
[1764199255166,1.28604964,3024.6,3024.5,3.6906]
[1764199255560,0.79414964,3024.6,3024.5,3.6906]
[1764199255760,1.44344414,3024.9,3024.8,0.4828]
[1764199255960,2.23752173,3024.9,3024.8,0.4828]
[1764199256169,2.72942173,3024.9,3024.8,0.4828]
[1764199256466,2.72942173,3024.9,3024.5,3.2078]
[1764199256661,1.28597759,3024.8,3024.7,0.4828]
[1764199263370,1.28597759,3024.8,3024.4,3.2078]
[1764199263571,1.28597759,3024.7,3024.6,0.4828]
[1764199264871,0.79407759,3024.7,3024.6,0.4828]
[1764199265072,1.93534414,3024.9,3024.8,0.4828]
[1764199265273,2.7297606,3024.9,3024.8,0.4828]
[1764199266976,1.28631646,3024.9,3024.8,0.4828]
[1764199267177,0.79441646,3024.9,3024.8,0.4828]
[1764199267568,1.27451646,3024.9,3024.8,0.4828]
[1764199268674,0.79441646,3024.9,3024.8,0.4828]
[1764199268874,0.79441646,3024.9,3024.8,3.6906]
[1764199269079,0.00803209,3025.1,3025.0,0.7559]
[1764199269475,0.80296473,3025.1,3025.0,0.7559]
[1764199270072,0.00803209,3025.1,3025.0,0.7559]
[1764199270277,3.2078,3025.5,3025.4,0.4852]
[1764199270576,0.79454279,3025.5,3025.4,0.4852]
[1764199270969,1.18328835,3026.2,3025.9,0.4852]
[1764199271176,3.6879,3026.4,3026.3,0.4852]
[1764199271486,4.48573407,3026.4,3026.3,0.00320492]
[1764199272375,4.48573407,3026.4,3026.3,0.48840492]
[1764199272583,0.7563,3026.0,3025.9,3.2078]
[1764199272786,0.4801,3025.6,3025.5,3.693]
[1764199273192,1.71964414,3026.0,3025.5,3.693]
[1764199273393,0.79552391,3025.9,3025.5,3.693]
[1764199273595,1.71964414,3026.0,3025.5,3.69585751]
[1764199273794,0.79552939,3025.9,3025.5,3.69585751]
[1764199274094,1.71964414,3026.0,3025.5,3.69585751]
[1764199274296,0.79532214,3025.9,3025.5,3.69585751]
[1764199274496,1.71964414,3026.0,3025.5,3.69585751]
[1764199274794,0.79532829,3025.9,3025.5,3.69585751]
[1764199274995,1.71964414,3026.0,3025.5,3.69585751]
[1764199275294,0.4801,3025.6,3025.5,3.21065751]
[1764199275496,0.4801,3025.6,3025.5,3.69585751]
[1764199280797,1.71964414,3026.0,3025.5,3.69585751]
[1764199280999,4.92744414,3026.0,3025.5,3.69585751]
[1764199281501,1.71964414,3026.0,3025.5,3.69585751]
[1764199282098,0.2762,3026.0,3025.5,3.96655751]
[1764199283599,0.7563,3026.0,3025.9,0.4852]
[1764199284200,2.19974414,3026.0,3025.5,3.48135751]
[1764199284601,5.40754414,3026.0,3025.5,3.48135751]
[1764199286106,5.40754414,3026.0,3025.5,3.21065751]
[1764199287708,2.19974414,3026.0,3025.5,3.21065751]
[1764199288407,2.19974414,3026.0,3025.5,3.48135751]
[1764199288609,2.19974414,3026.0,3025.9,0.4852]
[1764199289508,2.99105729,3026.0,3025.5,3.48135751]
[1764199289710,2.19974414,3026.0,3025.5,3.48135751]
[1764199294310,1.2721853,3025.9,3025.8,0.4852]
[1764199294606,1.92354414,3026.2,3026.1,0.4852]
[1764199294812,2.71562234,3026.2,3026.1,0.4852]
[1764199295414,2.71562234,3026.2,3025.5,4.92480165]
[1764199295614,0.2707,3026.0,3025.5,4.92480165]
[1764199295910,0.7565,3026.0,3025.9,0.4602]
[1764199296315,1.54889236,3026.0,3025.9,0.4602]
[1764199300922,1.54889236,3026.0,3025.5,4.92480165]
[1764199301122,0.79239236,3025.9,3025.5,4.92480165]
[1764199301820,1.27819236,3025.9,3025.8,0.4602]
[1764199303521,1.27819236,3025.9,3025.5,4.92480165]
[1764199303522,0.4858,3025.6,3025.5,3.67085751]
[1764199308020,1.18741675,3026.4,3026.3,0.4602]
[1764199308222,0.7992615,3026.4,3026.3,3.668]
[1764199308423,0.0041284,3026.4,3026.3,3.668]
[1764199309312,0.4907572,3026.7,3026.6,0.4602]
[1764199309520,1.28694415,3026.7,3026.6,0.4602]
[1764199309718,0.0049572,3026.7,3026.6,0.4602]
[1764199309920,3.484,3027.5,3026.5,1.53285251]
[1764199310123,1.28193819,3027.4,3027.3,0.4602]
[1764199310327,0.00296196,3027.4,3027.3,0.4602]
[1764199313522,0.0049572,3027.7,3027.6,0.4602]
[1764199314522,0.00729554,3027.7,3027.6,0.4602]
[1764199315028,0.49309554,3027.7,3027.6,0.4602]
[1764199315331,0.2707,3027.5,3027.1,3.2078]
[1764199315829,0.7565,3027.5,3027.4,0.4602]
[1764199320431,0.4858,3027.2,3027.1,3.668]
[1764199321537,0.4858,3027.2,3027.1,3.2078]
[1764199321733,1.92825251,3027.2,3027.1,3.2078]
[1764199323643,0.4858,3027.1,3027.0,0.0049572]
[1764199326946,3.6936,3027.1,3027.0,0.0049572]
[1764199329549,0.4953,3026.3,3026.2,3.2078]
[1764199330448,0.4953,3026.3,3026.2,3.6969]
[1764199330650,0.4953,3026.3,3026.2,0.4891]
[1764199331450,0.4953,3026.3,3025.9,0.0049572]
[1764199331647,0.7813,3026.0,3025.9,0.4940572]
[1764199332347,1.44245251,3026.4,3025.9,0.4940572]
[1764199334552,0.7813,3026.0,3025.9,0.4940572]
[1764199337555,0.4953,3026.0,3025.9,0.4940572]
[1764199337753,1.44245251,3026.4,3025.9,0.4940572]
[1764199338259,0.4953,3026.0,3025.9,0.4940572]
[1764199340056,1.72845251,3026.5,3025.9,0.4940572]
[1764199340259,0.7813,3026.0,3025.9,0.4940572]
[1764199341658,0.286,3026.5,3026.0,0.2796]
[1764199341860,0.4953,3026.3,3026.2,3.6969]
[1764199342459,0.4953,3026.3,3026.2,3.2078]
[1764199343862,0.4953,3026.3,3026.2,3.6969]
[1764199344265,0.7813,3026.5,3026.4,0.4891]
[1764199344459,3.2078,3026.6,3026.4,0.4891]
[1764199344756,3.2078,3026.6,3026.5,0.4891]
[1764199344956,3.2078,3026.6,3026.5,0.5799]
[1764199345157,3.7031,3026.6,3026.5,0.4891]
[1764199347070,0.4953,3026.6,3026.5,0.4891]
[1764199347265,0.7813,3027.0,3026.9,0.4891]
[1764199347467,0.286,3027.0,3026.9,0.4891]
[1764199347762,0.7813,3027.0,3026.6,3.2078]
[1764199347969,0.4953,3026.7,3026.6,3.6969]
[1764199350772,0.4953,3026.7,3026.6,3.2078]
[1764199351268,0.4953,3026.7,3026.6,3.6969]
[1764199351769,0.4953,3026.7,3026.6,3.2078]
[1764199352563,0.4953,3026.7,3026.2,1.44245251]
[1764199352774,0.4953,3026.7,3026.6,3.2078]
[1764199353076,0.4953,3026.7,3026.6,3.6969]
[1764199353769,0.4953,3026.7,3026.6,3.2078]
[1764199354176,0.4953,3026.7,3026.2,3.2078]
[1764199355377,0.4953,3026.7,3026.6,0.4891]
[1764199355877,0.4953,3026.7,3026.2,3.2078]
[1764199359480,0.4953,3026.7,3026.6,0.4622]
[1764199359881,1.28459378,3026.7,3026.6,0.4622]
[1764199360281,0.4953,3026.7,3026.6,0.4622]
[1764199361284,3.6961,3026.9,3026.8,0.4622]
[1764199361482,4.48535021,3026.9,3026.8,0.4622]
[1764199362487,4.48535021,3026.9,3026.2,3.2078]
[1764199362679,2.23170272,3026.8,3026.2,3.2078]
[1764199362881,0.78925021,3026.7,3026.2,3.2078]
[1764199364389,0.4883,3026.3,3026.2,3.67]
[1764199364983,2.62574086,3027.1,3026.2,3.67]
[1764199365177,0.78991009,3026.9,3026.8,0.4622]
[1764199365577,1.27821009,3026.9,3026.8,0.4622]
[1764199366189,0.4883,3026.7,3026.6,3.67]
[1764199366385,1.27821009,3026.7,3026.6,3.67]
[1764199366586,1.27821009,3026.7,3026.6,0.4622]
[1764199371687,0.78991009,3026.7,3026.6,0.4622]
[1764199371887,0.286,3027.0,3026.9,0.4622]
[1764199372193,1.56483649,3027.0,3026.9,0.4622]
[1764199372393,0.4883,3026.6,3026.5,0.4622]
[1764199372886,1.27883649,3026.6,3026.5,0.4622]
[1764199373588,0.79053649,3026.6,3026.5,0.4622]
[1764199373787,1.72748092,3027.0,3026.4,3.2078]
[1764199373788,0.4883,3026.9,3026.8,0.4622]
[1764199373999,1.2791317,3026.9,3026.8,0.4622]
[1764199375698,0.7908317,3026.9,3026.8,0.4622]
[1764199375900,1.2791317,3026.9,3026.8,0.4622]
[1764199376203,1.2791317,3026.9,3026.4,3.2078]
[1764199376399,0.7908317,3026.8,3026.4,3.2078]
[1764199376593,1.2791317,3026.8,3026.7,0.4622]
[1764199376793,1.2791317,3026.8,3026.4,3.2078]
[1764199376986,0.7908317,3026.7,3026.4,3.2078]
[1764199377191,1.2791317,3026.6,3026.5,0.4622]
[1764199377897,0.7908317,3026.6,3026.5,0.4622]
[1764199378096,0.79101987,3026.9,3026.5,0.0913]
[1764199378297,0.79101987,3026.9,3026.8,0.4622]
[1764199378901,4.87938835,3027.1,3027.0,0.4622]
[1764199379199,2.4626335,3027.1,3027.0,0.4622]
[1764199379500,1.27934515,3027.1,3027.0,0.4622]
[1764199380096,0.79104515,3027.1,3027.0,0.4622]
[1764199380299,0.79104515,3027.1,3027.0,0.7329]
[1764199380496,0.77,3027.0,3026.9,3.67]
[1764199380691,1.56104515,3027.0,3026.9,3.2078]
[1764199381292,0.79104515,3027.0,3026.9,3.67]
[1764199381493,1.56104515,3027.0,3026.9,3.2078]
[1764199381801,1.56104515,3027.0,3026.9,3.67]
[1764199385002,1.56104515,3027.0,3026.9,3.2078]
[1764199391908,1.56104515,3027.0,3026.9,3.6905]
[1764199392606,1.44148092,3027.3,3026.9,3.6905]
[1764199392805,1.28353941,3027.2,3027.1,0.4827]
[1764199394410,0.7692,3027.0,3026.9,3.6905]
[1764199395606,0.4933,3027.3,3027.2,0.4827]
[1764199395814,0.50059554,3027.7,3027.6,0.4827]
[1764199396013,1.29336826,3027.7,3027.6,0.4827]
[1764199399614,1.29336826,3027.7,3027.3,3.2078]
[1764199399811,0.7692,3027.5,3027.4,0.4827]
[1764199400610,0.7692,3027.5,3027.4,3.6905]
[1764199401718,0.7692,3027.5,3027.4,0.4827]
[1764199402014,0.7692,3027.5,3027.4,3.6905]
[1764199403013,2.21068092,3027.5,3027.4,3.6905]
[1764199403318,0.4933,3026.9,3026.8,3.2078]
[1764199405521,0.4933,3026.9,3026.8,3.6905]
[1764199409515,1.44148092,3027.2,3027.1,0.4827]
[1764199409717,2.72751023,3027.2,3027.1,0.4827]
[1764199409923,2.72751023,3027.2,3026.8,3.2078]
[1764199410119,0.7692,3027.0,3026.9,0.4827]
[1764199410321,1.56192931,3027.0,3026.9,0.4827]
[1764199411416,1.28602931,3027.0,3026.9,0.4827]
[1764199411916,0.79272931,3027.0,3026.9,0.4827]
[1764199412912,1.28602931,3027.0,3026.9,0.4827]
[1764199414425,1.56192931,3027.0,3026.9,0.4827]
[1764199414823,0.79272931,3027.0,3026.9,0.4827]
[1764199415031,2.21068092,3027.5,3026.8,3.2078]
[1764199415223,0.79263075,3027.4,3027.3,3.6905]
[1764199415629,0.79261521,3027.4,3027.3,3.6905]
[1764199417034,1.90827646,3027.7,3027.6,0.4905]
[1764199417329,2.70087095,3027.7,3027.6,0.4905]
[1764199418331,0.4595,3027.4,3027.3,0.4905]
[1764199418526,1.25209449,3027.4,3027.3,0.4905]
[1764199418827,1.25209449,3027.4,3027.3,3.6983]
[1764199419026,0.79259449,3027.4,3027.3,3.6983]
[1764199420722,1.25209449,3027.4,3027.3,3.6983]
[1764199421525,0.4595,3027.0,3026.9,3.6983]
[1764199421829,2.18308092,3027.0,3026.9,3.6983]
[1764199422227,0.7416,3027.0,3026.9,3.6983]
[1764199425834,0.4595,3026.6,3026.5,3.6983]
[1764199426131,1.72358092,3027.0,3026.5,3.6983]
[1764199426331,1.72358092,3027.0,3026.5,3.7894]
[1764199426531,0.7416,3027.0,3026.9,0.4905]
[1764199426732,1.53472117,3027.0,3026.9,0.4905]
[1764199427232,1.53472117,3027.0,3026.5,3.2078]
[1764199427434,0.7416,3027.0,3026.5,3.2078]
[1764199427835,0.7416,3027.0,3026.5,3.2989]
[1764199428227,1.2527298,3026.9,3026.8,0.4905]
[1764199431738,0.4595,3026.6,3026.5,3.6983]
[1764199433238,0.2821,3027.0,3026.5,3.6983]
[1764199433436,0.79371696,3026.9,3026.5,3.6983]
[1764199433636,0.4595,3026.6,3026.5,3.6983]
[1764199438143,1.72341885,3027.0,3026.5,3.6983]
[1764199438445,2.9067072,3027.5,3027.1,0.4905]
[1764199438646,0.79360211,3027.4,3027.1,0.4905]
[1764199438839,1.25310211,3027.3,3027.2,0.4905]
[1764199440343,0.7416,3027.0,3026.4,3.2078]
[1764199440650,0.79360211,3026.9,3026.4,3.2078]
[1764199440939,1.25310211,3026.9,3026.8,0.4905]
[1764199441745,0.4595,3026.9,3026.8,3.6983]
[1764199441940,0.2821,3027.0,3026.9,0.4905]
[1764199442140,1.07564801,3027.0,3026.9,0.4905]
[1764199444151,0.79354801,3027.0,3026.9,0.4905]
[1764199444350,0.4595,3027.4,3027.3,0.4905]
[1764199444848,0.46679554,3027.7,3027.6,0.4905]
[1764199445049,0.00729554,3027.7,3027.6,3.6983]
[1764199446141,0.2817,3028.5,3028.4,0.4822]
[1764199446445,1.56385996,3028.5,3028.4,3.69]
[1764199446642,0.79235996,3028.5,3028.4,3.69]
[1764199447051,0.00267807,3028.5,3028.4,3.69261709]
[1764199448040,0.49247807,3028.5,3028.4,3.69261709]
[1764199449849,0.00267807,3028.5,3028.4,3.69261709]
[1764199452550,0.77117807,3028.5,3028.4,3.69261709]
[1764199452744,0.77117807,3028.5,3028.4,3.21041709]
[1764199456265,0.77117807,3028.5,3028.4,0.00261709]
[1764199456470,7.71848624,3028.5,3028.4,0.00261709]
[1764199461271,0.78484624,3028.5,3028.4,0.46181709]
[1764199461469,0.78484624,3028.5,3028.4,3.66961709]
[1764199461470,0.00267807,3028.5,3028.4,3.66961709]
[1764199464262,0.16511,3029.1,3028.7,0.4592]
[1764199464466,1.55107266,3029.0,3028.9,3.2078]
[1764199464969,0.7685,3029.0,3028.9,3.2078]
[1764199465272,1.55492116,3029.0,3028.9,3.2078]
[1764199466968,1.55145467,3028.5,3028.4,3.21041709]
[1764199469872,1.55145467,3028.5,3028.4,0.00261709]
[1764199470176,1.71659467,3028.5,3028.4,0.00261709]
[1764199476089,2.12002998,3028.5,3028.4,0.00261709]
[1764199476278,2.90298465,3028.5,3028.4,0.00261709]
[1764199478587,2.90298465,3028.5,3028.4,0.46181709]
[1764199479489,1.71659467,3028.5,3028.4,0.46181709]
[1764199480778,1.71659467,3028.5,3028.4,0.00261709]
[1764199483189,2.90298465,3028.5,3028.4,0.00261709]
[1764199485195,0.4589,3028.1,3028.0,3.2078]
[1764199485490,2.68317352,3028.1,3028.0,3.2078]
[1764199485690,0.4589,3027.7,3027.6,3.2078]
[1764199485892,1.90021885,3027.7,3027.6,3.2078]
[1764199486093,2.68317352,3027.7,3027.6,3.21133566]
[1764199487690,0.4589,3027.4,3027.3,0.0049572]
[1764199487992,2.68317352,3027.4,3027.3,0.0049572]
[1764199488591,2.68308872,3027.4,3027.3,0.0049572]
[1764199488893,2.68308872,3027.4,3027.3,0.00881946]
[1764199500303,2.84828872,3027.4,3027.3,0.00881946]
[1764199500509,0.4589,3026.8,3026.7,3.2078]
[1764199500806,0.62415,3026.4,3026.3,3.2078]
[1764199500993,0.7547,3026.0,3025.9,3.2078]
[1764199501300,0.4589,3025.6,3025.5,3.2078]
[1764199501501,1.90436018,3025.6,3025.5,3.21058079]
[1764199502310,0.00422613,3025.6,3025.5,3.68238079]
[1764199503006,0.00422613,3025.6,3025.5,3.96208079]
[1764199505306,0.46312613,3025.6,3025.5,3.68238079]
[1764199506114,0.46312613,3025.6,3025.5,3.21058079]